Cogmind - Beta 11.1 @@@ ROGUE MODE // 2022.12.20 @ 22:35:59 Player: Richard Blunt Result: Destroyed by DAS Turret with DAS Cannon Performance ------------- Evolutions (0) 0 Regions Visited (3) 600 Robots Destroyed (23) 115 Value Destroyed (343) 343 Prototype IDs (23) 460 Alien Tech Used (0) 0 Bonus (300) 300 TOTAL SCORE: 1818 Bonus ------- Aligned with FarCom 300 Cogmind --------- Core Integrity 0/250 Matter 31/300 Energy 96/100 System Corruption 0% Temperature Cool (4) Movement Walking (90) Location -10/Exiles Parts ------- > --- POWER (1) -------- (None) > --- PROPULSION (2) --- Potential Leg Potential Leg > --- UTILITY (2) ------ Large Storage Unit Long-range Tractor Beam > --- WEAPON (2) ------- Assault Rifle > --- INVENTORY (15) --- Wheel Wheel Ion Cannon Assault Rifle Grenade Launcher Plasma Cutter Peak State ------------ > --- POWER ------------ Improved Ion Engine > --- PROPULSION ------- Potential Leg Potential Leg > --- UTILITY ---------- Large Storage Unit Light Armor Plating > --- WEAPON ----------- Assault Rifle Heavy Assault Rifle > --- INVENTORY -------- Light Ion Engine Reinforced Deuterium Engine Fission Core Light Fission Core Wheel Wheel Light Armor Plating Long-range Tractor Beam Ion Cannon Assault Rifle Assault Rifle Assault Rifle Assault Rifle Grenade Launcher Plasma Cutter [Rating: 30] Favorites ----------- Power Improved Ion Engine Engine Improved Ion Engine Propulsion Wheel Treads Light Treads Leg Potential Leg Wheel Wheel Utility Huge Storage Unit Device Structural Scanner Storage Huge Storage Unit Protection Light Armor Plating Weapon Assault Rifle Energy Gun Medium Laser Ballistic Gun Assault Rifle Launcher Grenade Launcher Special Weapon Mining Laser Build | -11 -10 -10 -10 ------- Run | Scr Mat Min Exi Slots Evolved . | . . . . Power . | . . . . Propulsion . | . . . . Utility . | . . . . Weapon . | . . . . Parts Attached 54 | 9 16 15 14 Power 4 | 1 1 1 1 Engine 4 | 1 1 1 1 Core . | . . . . Reactor . | . . . . Propulsion 12 | 3 3 4 2 Treads 1 | 1 . . . Leg 2 | . . . 2 Wheel 9 | 2 3 4 . Hover . | . . . . Flight . | . . . . Utility 18 | 2 4 6 6 Device 9 | 1 1 5 2 Storage 5 | 1 3 . 1 Processor . | . . . . Hackware . | . . . . Protection 4 | . . 1 3 Artifact . | . . . . Weapon 20 | 3 8 4 5 Energy Gun 2 | 2 . . . Energy Cannon . | . . . . Ballistic Gun 13 | 1 5 3 4 Ballistic Cannon . | . . . . Launcher 1 | . . . 1 Special Weapon 4 | . 3 1 . Impact Weapon . | . . . . Slashing Weapon . | . . . . Piercing Weapon . | . . . . Special Melee Weapon . | . . . . Unidentified Prototypes . | . . . . Parts Lost 9 | . . 1 8 Power 2 | . . . 2 Propulsion 1 | . . 1 . Utility 2 | . . . 2 Weapon 4 | . . . 4 Highest Loss Streak 6 | . . 1 6 To Critical Strikes 3 | . . . 3 Average Slot Usage (%) 99 | . 100 99 99 Engine 13 | . 14 14 13 Treads 3 | . 11 . . Leg 2 | . . . 5 Wheel 22 | . 16 27 22 Device 10 | . 14 13 6 Storage 14 | . 14 14 14 Protection 3 | . . . 7 Ballistic Gun 25 | . 22 24 27 Special Weapon 2 | . 3 3 . Naked Turns . | . . . . Heaviest Build 95 | 12 90 95 93 Greatest Support 60 | 20 26 32 60 Greatest Overweight (x) 8 | 1 8 5 4 Average Overweight (x) 2 | . 2 3 2 Largest Inventory Capacity 25 | 8 25 25 25 Average Capacity 19 | 7 16 25 19 Most Carried 25 | 6 16 25 25 Average Carried 17 | 4 14 23 17 Final Capacity 25 | 8 25 25 15 Final Carried 25 | 6 16 25 6 Class Distribution -------------------- 50% | Scavenger-Mutant 49% | Mutant Dominant Class ---------------- Mutant | -10/Materials Scavenger-Mutant | -10/Mines Scavenger-Mutant | -10/Exiles Resources | -11 -10 -10 -10 ----------- Run | Scr Mat Min Exi Matter Collected 872 | 276 239 240 117 Remotely 39 | . . . 39 Salvage Created 629 | 130 405 92 2 Parts 55 | 7 39 9 . Haulers Intercepted 2 | . 2 . . Recyclers Shooed 3 | 1 2 . . Parts Field Recycled . | . . . . Retrieved Matter . | . . . . Parts Self-Destructed . | . . . . Prevented . | . . . . Kills | -11 -10 -10 -10 ------- Run | Scr Mat Min Exi Combat Hostiles Destroyed 17 | . 12 2 3 Guns 15 | . 12 2 1 AOE 2 | . . . 2 Classes Destroyed 8 | 2 4 1 1 Tunneler 5 | 4 . 1 . Hauler 2 | . 2 . . Recycler 1 | 1 . . . Watcher 1 | . 1 . . Swarmer 9 | . 9 . . Grunt 3 | . 3 . . Sentry 2 | . . 2 . Assembled 3 | . . . 3 Best Kill Streak 3 | 2 3 2 3 Combat Bots Only 3 | . 3 2 3 Max Kills in Single Turn 1 | 1 1 1 1 Gunslinging . | . . . . Exploded 1 | . . . 1 Melee . | . . . . Uniques/NPCs Destroyed . | . . . . Combat | -11 -10 -10 -10 -------- Run | Scr Mat Min Exi Damage Taken 1739 | . 293 102 1344 Core 293 | . 50 17 226 Absorbed by Shields . | . . . . Core Remaining (%) 100 | 100 . . . Volleys Fired 107 | 17 47 6 37 Largest 2 | 2 2 2 2 Hottest 100 | 100 100 100 43 Shots Fired 202 | 34 85 11 72 Gun 190 | 34 76 10 70 Cannon . | . . . . Launcher 2 | . . . 2 Special 10 | . 9 1 . Kinetic 159 | 11 68 10 70 Thermal 41 | 23 17 1 . Explosive 2 | . . . 2 Electromagnetic . | . . . . Robot Hit Streak 16 | 6 11 10 16 Robot Miss Streak 4 | 3 3 1 4 Penetration Max . | . . . . Secondary Targets . | . . . . Shots Hit Robots 123 | 23 47 8 45 Core Hits 45 | 8 19 4 14 Critical Kills . | . . . . Critical Parts Destroyed . | . . . . Critical Strikes 1 | 1 . . . Burn 1 | 1 . . . Melee Attacks . | . . . . Impact . | . . . . Slashing . | . . . . Piercing . | . . . . Sneak Attacks . | . . . . Combat Hostiles . | . . . . Follow-up Attacks . | . . . . Damage Inflicted 1623 | 248 598 111 666 Guns 1485 | 248 574 111 552 Cannons . | . . . . Explosions 114 | . . . 114 Melee . | . . . . Ramming . | . . . . Kinetic 1230 | 61 506 111 552 Thermal 279 | 187 92 . . Explosive 114 | . . . 114 Electromagnetic . | . . . . Impact . | . . . . Slashing . | . . . . Piercing . | . . . . Highest Corruption . | . . . . Average Corruption . | . . . . Corruption Purged . | . . . . Corruption Blocked . | . . . . Overload Shots . | . . . . Overflow Damage . | . . . . Projectiles . | . . . . Explosions . | . . . . Melee . | . . . . Knockbacks . | . . . . Impact . | . . . . Kinetic . | . . . . Secondary . | . . . . Self-Inflicted Damage 26 | . . . 26 Shots 1 | . . . 1 Rammed . | . . . . Targets Rammed . | . . . . Kicked . | . . . . Crushed . | . . . . Highest Temperature 195 | 195 120 20 . Average Temperature 60 | 88 34 12 . Received Heat Transfer 78 | . 42 36 . Siege Activations . | . . . . Robots Corrupted . | . . . . Combat Hostiles . | . . . . Parts Fried . | . . . . Impact Corruptions . | . . . . Robots Melted . | . . . . Combat Hostiles . | . . . . Parts Melted 3 | 1 2 . . Heat Transferred 864 | 629 235 . . Parts Sabotaged . | . . . . Parts Stolen . | . . . . Parts Stripped . | . . . . Power Chain Reactions . | . . . . Missiles Intercepted . | . . . . Alert | -11 -10 -10 -10 ------- Run | Scr Mat Min Exi Peak Influence 215 | 25 215 136 . Initial 83 | . 16 83 . Average 58 | 9 91 34 . Maximum Alert Level 1 | . 1 . . Low Security (%) 90 | 100 77 100 . Level 1 9 | . 22 . . Level 2 . | . . . . Level 3 . | . . . . Level 4 . | . . . . Level 5 . | . . . . High Security . | . . . . Max Security . | . . . . Squads Dispatched 3 | . 2 1 . Investigation 3 | . 2 1 . Extermination . | . . . . Reinforcement . | . . . . Assault . | . . . . Garrison . | . . . . Intercept . | . . . . Searches Triggered . | . . . . Construction Impeded . | . . . . Haulers Reinforced . | . . . . Active Scanning Responses . | . . . . Cargo Convoy Interrupts . | . . . . Stealth | -11 -10 -10 -10 --------- Run | Scr Mat Min Exi Distress Signals 3 | . 3 . . Communications Jammed . | . . . . Distress Signals . | . . . . Times Spotted 34 | . 19 2 13 Peak Tracking Total 9 | . 5 2 9 Tactical Retreats 2 | . 1 . 1 Traps | -11 -10 -10 -10 ------- Run | Scr Mat Min Exi Traps Triggered 1 | . 1 . . Indirectly . | . . . . Trap Hack Attempts . | . . . . Triggered . | . . . . Disarmed . | . . . . Reprogrammed . | . . . . Reused . | . . . . Traps Extracted . | . . . . Installed . | . . . . Triggered . | . . . . Exploded 3 | . . . 3 Machines | -11 -10 -10 -10 ---------- Run | Scr Mat Min Exi Machines Disabled 4 | . . . 4 Max in Single Turn 2 | . . . 2 Machines Sabotaged . | . . . . Garrisons Compromised . | . . . . Overloaded Fab Kills . | . . . . Hacking | -11 -10 -10 -10 --------- Run | Scr Mat Min Exi Machines Accessed 11 | . 7 2 2 Terminals 7 | . 6 1 . Fabricators . | . . . . Repair Stations . | . . . . Recycling Units 1 | . 1 . . Scanalyzers . | . . . . Garrison Access . | . . . . Total Hacks 33 | . 27 4 2 Successful 16 | . 12 2 2 Failed 17 | . 15 2 . Catastrophic 2 | . 1 1 . Database Lockouts . | . . . . Manual 24 | . 21 2 1 Terminals 29 | . 26 3 . Fabricators . | . . . . Repair Stations . | . . . . Recycling Units 1 | . 1 . . Scanalyzers . | . . . . Garrison Access . | . . . . Terminal Hacks 12 | . 8 2 2 Record 1 | . . . 1 Part Schematic 1 | . 1 . . Robot Analysis 4 | . 4 . . Open Door 1 | . . 1 . Locate Traps 1 | . 1 . . Zone Layout 3 | . 2 1 . EX-Prototype ID Bank 1 | . . . 1 Fabricator Hacks . | . . . . Repair Station Hacks . | . . . . Recycling Unit Hacks . | . . . . Scanalyzer . | . . . . Garrison Access Hacks . | . . . . Unauthorized Hacks 4 | . 4 . . Terminals 3 | . 3 . . Botnet 3 | . 3 . . Fabricators . | . . . . Repair Stations . | . . . . Recycling Units 1 | . 1 . . Tunnel 1 | . 1 . . Scanalyzers . | . . . . Garrison Access . | . . . . Data Cores Recovered . | . . . . Used . | . . . . Hacking Detections 7 | . 6 1 . Full Trace Events . | . . . . Feedback Events . | . . . . Feedback Blocked . | . . . . Robot Schematics Acquired . | . . . . Robots Built . | . . . . Authchips . | . . . . Time . | . . . . Total Robot Build Rating . | . . . . Part Schematics Acquired 1 | . 1 . . Parts Built . | . . . . Authchips . | . . . . Time . | . . . . Total Part Build Rating . | . . . . Parts Repaired . | . . . . Time . | . . . . Parts Recycled . | . . . . Recycled Matter . | . . . . Retrieved Matter . | . . . . Retrieved Components . | . . . . Parts Scanalyzed . | . . . . Part Schematics Acquired . | . . . . Parts Damaged . | . . . . Bothacking | -11 -10 -10 -10 ------------ Run | Scr Mat Min Exi Used RIF Installer . | . . . . Robots Hacked . | . . . . Non-combat . | . . . . Combat . | . . . . Robot Hacks Applied . | . . . . Relay Couplers Released . | . . . . Fabnet Peak Effective % . | . . . . Robots Rewired . | . . . . Allies Hacked . | . . . . Hacks Repelled . | . . . . Allies | -11 -10 -10 -10 -------- Run | Scr Mat Min Exi Total Allies . | . . . . Largest Group . | . . . . Highest-Rated Group . | . . . . Highest-Rated Ally . | . . . . Total Orders . | . . . . Ally Attacks . | . . . . Total Damage . | . . . . Kills . | . . . . Allies Corrupted . | . . . . Allies Melted . | . . . . Intel | -11 -10 -10 -10 ------- Run | Scr Mat Min Exi Robot Analysis Total 4 | . 4 . . Derelict Logs Recovered 1 | . . 1 . Drone Launches . | . . . . Drone Recoveries . | . . . . Exploration | -11 -10 -10 -10 ------------- Run | Scr Mat Min Exi Turns Passed 3564 | 133 968 1094 1369 Spaces Moved 2580 | 69 692 740 1079 Core 3 | 3 . . . Treads 4 | 4 . . . Legs 135 | . . . 135 Wheels 2438 | 62 692 740 944 Hover . | . . . . Flight . | . . . . Fastest Speed 50 | 50 95 130 90 Average Speed 119 | 95 112 138 111 Slowest Speed 200 | 160 200 175 140 Overloaded Moves . | . . . . Propulsion Burnouts . | . . . . Robots Hopped . | . . . . Cave-ins Triggered . | . . . . Exploration Rate (%) 67 | 4 95 99 72 Regions Visited 3 Branch Regions 2 Pre-discovered Areas 2 | . 1 . 1 Known Exits Taken . | . . . . Unknown Exits Taken 3 | 1 1 1 . Scrap Searched 3 | . . 3 . Spaces Dug 9 | . 8 1 . Terrain Destroyed 18 | . 8 1 9 Melee . | . . . . Projectile 9 | . 8 1 . AOE 9 | . . . 9 Terrain Rammed . | . . . . Walls Destroyed . | . . . . Machines Disabled . | . . . . Actions | -11 -10 -10 -10 --------- Run | Scr Mat Min Exi Total 2855 | 99 785 793 1178 Wait 46 | . 7 16 23 Move 2577 | 68 691 739 1079 Hop . | . . . . Pick Up 37 | 5 13 9 10 Fast Attach 10 | 7 . 2 1 Attach 7 | . . 1 6 Detach 3 | . . 2 1 Swap 37 | 2 16 12 7 Drop 31 | . 11 6 14 Fire 107 | 17 47 6 37 Melee . | . . . . Ram . | . . . . Kick . | . . . . Crush . | . . . . Escape Stasis . | . . . . Rewire . | . . . . Trap . | . . . . Miscellaneous . | . . . . Route ------- -11/Scrapyard -10/Materials (discovered 5 exits: [*Mat x3] / *Min x2) -10/Mines (discovered 3 exits: [*Mat x2] / *Exi) -10/Exiles (discovered 2 exits: [*Min x2]) History --------- Turn | Location | Event 27 | -11/Scrapyard | Discovered new exit (range 15) 134 | -11/Scrapyard | Entered Materials 307 | -10/Materials | Build established: Mutant 328 | -10/Materials | Discovered new exit (range 16) 507 | -10/Materials | Discovered new exit (range 10) 509 | -10/Materials | Discovered new exit (range 7) 699 | -10/Materials | Discovered new exit (range 11) 952 | -10/Materials | Discovered new exit (range 16) 1102 | -10/Materials | Entered Mines 1164 | -10/Mines | Met a Derelict shopkeep closing up shop 1257 | -10/Mines | Discovered new exit (range 6) 1531 | -10/Mines | Deemed a non-threat by the Exiles lab entrance 1533 | -10/Mines | Discovered new exit (range 5) 1761 | -10/Mines | Discovered new exit (range 7) 1781 | -10/Mines | Build established: Scavenger-Mutant 1838 | -10/Mines | Learned Materials garrison access intel 2196 | -10/Mines | Entered Exiles 2215 | -10/Exiles | Discovered new exit (range 15) 2245 | -10/Exiles | Met 8R-AWN 2269 | -10/Exiles | Met EX-HEX 2371 | -10/Exiles | Met EX-DEC 2451 | -10/Exiles | Discovered new exit (range 11) 2518 | -10/Exiles | Learned location of Zion (-7) 2556 | -10/Exiles | Met EX-BIN 2587 | -10/Exiles | Aligned with FarCom system 2588 | -10/Exiles | Given EX-Vault access code 2626 | -10/Exiles | Opened EX-Vault 2663 | -10/Exiles | Warned to stay clear of 0b10 Research branches 3293 | -10/Exiles | Found Potential Leg 3295 | -10/Exiles | Found Potential Leg 3358 | -10/Exiles | Attacked by the Exiles 3518 | -10/Exiles | Lost 6 parts (1p2u3w) 3521 | -10/Exiles | Core integrity fell below 50% 3564 | -10/Exiles | Core integrity fell below 20% 3565 | -10/Exiles | Destroyed by DAS Turret with DAS Cannon Last Messages --------------- 03508_ Penetrated by HV Slug. 03512_ HV Slug penetrates Wall. 03512_ Machine disabled. 03516_ Penetrated by HV Slug. 03516_ HV Slug penetrates Wall. 03520_ Penetrated by HV Slug. 03529_ Lgt. Ion Engine destroyed. 03529_ Penetrated by HV Slug. 03537_ HV Slug penetrates Wall. 03546_ Penetrated by HV Slug. 03546_ HV Slug penetrates Wall. 03550_ Penetrated by HV Slug. 03556_ Assault Rifle destroyed. 03556_ Knocked back. 03557_ Acquired 9 matter. 03557_ Knocked back. 03558_ Acquired 8 matter. 03559_ Penetrated by HV Slug. 03561_ Knocked back. 03562_ Acquired 5 matter. Map ----- +----------------------------------------------------+ | ?????????????????????##" ##???????????? | | ?????????????????????##" ## ############?? | | ?????????????????????##""""""## ############?? | | ?????????????????????###"###### ###"""""""##?? | | ?????????????????????? "###### ###"""""""##?? | | ????????????????????????????### ###"""""""##?? | | #####???????????????????????### ###"" """"##?? | | #####???????????????????????##" """"##?? | | ! "##???????????????????????##" """##?? | | "##???????????????????????##" """##?? | | "##????????##########?????##" """##?? | | ""##????????##########?????##" """## ? | | ""##????????## """##?????##" """## ? | | "##????????##"" """##?????### """"""? | | ####????????##"" ##?????### """###? | | ####????????##"" ##??????##" "X" """"" ? | | ###?????????##"" "##??????##" """ # ?? | | ####???????## ""##?????###" """""""""# ?? | | """##??????##"" ""##????####" ########### ?? | | "#######?#### ###########"" ############?? | | ############ "#########"" ###??????????? | | """#####X# #"###""""""" ####?######### | | """""" " "" ############# | | # "" """ " #####""""""" | | ## " " " """ " | | #### a% @ "" | | ###### " | | ??##### | | ????#### | | ?????####" | | ??????###"" """""" | | ??????###" ######""" | | ?????###"" ""###########""" | | ?????###""" """####??#######""" | | ?????##""" """####???????###"""" | | ?????##""" ""##############"" | | ?????##"" ##############"""" | | ?????##""" ## ####""" | | ?????##"" """" | | ?????###"" | | ?????###"""" | | ??????### " | | ??????###" " "" """ | | ???????##"""" ""## ##""" " " ""#" | | ???????##"" ""#### ######""" """##" | | ???????##" """"##### ########""""#### | | ???????##""" """##### ################ | | ???????### ""#####! "!#???#######?? | | ???????###"" """######" !#???????????? | | ????????###""" ####?##" "#???????????? | +----------------------------------------------------+ Best States ------------- Heat Dissipation 39 Energy Generation 12 Energy Capacity 265 Matter Stores 300 Matter Capacity 300 Sight Range 16 Terrain Scan Density 10 Armor Coverage 150 Evasion (%) 57 Recoil Reduction 1 Item Schematics ----------------- Huge Storage Unit | -10/Materials | Hacked Robot Schematics ------------------ None Fabricated ------------ Nothing Alien Tech Used ----------------- None Achievements -------------- None Challenges ------------ None Game ------ Seed BladeEtherialLaser Manual? 0 Play Time 00:49:52 Cumulative 118.4 hours Start 2022.12.20 @ 21:38:59 End 2022.12.20 @ 22:35:59 Sessions 1 Manual Loads 0 Difficulty Rogue Special Mode None Game No. 38 Rogue 38 Adventurer 0 Explorer 0 Win Type - Total 1 Types 1/0/0/0/0/0/0/0/0 Lore% 45 Gallery% 51 Achievement% 44 Wizard Run 0 Options --------- ASCII 0 Keyboard 1 Movement Vi Keybinds 0 Fullscreen 1 Font 18/SmallcapsGlow Map View 76x50 Tactical HUD 1 Map Filters NONE Filters NONE Steam 1 RUN: 60aa998e-a68f-4a0e-bc28-85781e913c5c